{"text_format":"1","workbook":"xlsx","n_sheets":4,"sheets":["注意事項","別紙２（単体・変更契約）","別紙２（単体（代理人（法人））・変更契約）","別紙２（単体（代理人（個人））・変更契約）"],"not_rendered":{"charts":0,"images":0,"macros":1,"external_links":0,"defined_names":3,"comments":3,"pivot_tables":0},"unopened":[],"bounds":{"document_bytes":16777216,"sheet_cells":100000,"rows_first":2000,"rows_last":500,"rows_between":2000,"halvings":0,"cell_chars":16384,"cell_head_chars":4096},"cells_cut":0,"cells_raw":0,"read":"whole","date_system":"1900"}

{"sheet":"注意事項","index":0,"n_rows":20,"n_cols":2,"rows_kept":20,"cut":false,"hidden":false,"merged":[]}
[]
[null,"・別紙２（単体・変更契約）"]
[]
[null,"・別紙２（単体（代理人（法人））・変更契約）"]
[]
[null,"・別紙２（単体（代理人（個人））・変更契約）"]
[]
[null,"変更契約から「紙契約」を希望する"]
[]
[null,"場合、上記いずれかの様式を、直接"]
[]
[null,"契約担当課へ提出してください。"]
[]
[null,"なお、メールで提出される場合は、"]
[]
[null,"行き違い等の防止のため、お手数"]
[]
[null,"ですが、その旨、電話連絡をお願い"]
[]
[null,"いたします。"]

{"sheet":"別紙２（単体・変更契約）","index":1,"n_rows":30,"n_cols":61,"rows_kept":30,"cut":false,"hidden":false,"merged":[[0,0,0,24],[8,7,8,12],[8,13,8,17],[8,19,8,23],[0,35,0,37],[1,27,2,28],[1,35,1,37],[4,27,5,28],[6,7,6,12],[6,13,6,23],[7,7,7,12],[7,13,7,23],[14,1,14,3],[14,6,14,23],[7,26,8,27],[7,28,8,32],[10,1,10,6],[10,7,10,24],[13,1,13,3],[13,6,13,8],[12,26,13,28],[12,29,13,33],[28,8,28,23],[19,14,19,17],[19,19,19,21],[16,0,20,1],[17,2,19,4],[17,5,17,8],[17,9,17,23],[18,5,18,8],[18,9,18,13],[18,15,18,23],[19,5,19,8],[19,9,19,12],[26,7,26,23],[27,7,27,23]]}
["変更契約に関する申出書",null,null,null,null,null,null,null,null,null,null,null,null,null,null,null,null,null,null,null,null,null,null,null,null,"はじめに選択↓",null,null,null,"契約区分",null,null,null,null,null,"入力箇所",null,null,null,null,null,"発注機関名","支出負担行為担当者名","代表アドレス","電話","担当係名",null,null,null,null,null,null,null,null,null,null,null,null,null,"発注機関名","担当係名"]
[null,null,null,null,null,null,null,null,null,null,null,null,null,null,null,null,null,null,null,null,null,null,null,null,null,null,null,null,null,null,1,"工事",null,null,null,"選択箇所",null,null,null,null,1,"空知調整","空知総合振興局長","sorachi.chosei1@pref.hokkaido.lg.jp","0126-20-0086","空知総合振興局産業振興部調整課調整係",null,null,null,null,null,null,null,null,null,null,null,null,1,"空知","空知総合振興局産業振興部調整課調整係"]
[null,null,null,null,null,null,null,null,null,null,null,null,null,null,null,null,null,{"$f":"IF($AB$2=\"\",\"\",\"令和\")","v":""},{"$f":"IF($AD$13<>\"\",TEXT($AD$13,\"e\"),\"\")","v":""},"年",{"$f":"IF($AD$13<>\"\",TEXT($AD$13,\"m\"),\"\")","v":""},"月",{"$f":"IF($AD$13<>\"\",TEXT($AD$13,\"d\"),\"\")","v":""},"日",null,null,null,null,null,null,2,"委託",null,null,null,null,null,null,null,null,2,"石狩調整","石狩振興局長","ishikari.chosei1@pref.hokkaido.lg.jp","011-204-5850","石狩振興局産業振興部調整課調整係",null,null,null,null,null,null,null,null,null,null,null,null,2,"石狩","石狩振興局産業振興部調整課調整係"]
[null,null,null,null,null,null,null,null,null,null,null,null,null,null,null,null,null,null,null,null,null,null,null,null,null,"次に選択↓",null,null,null,"発注機関",null,null,null,null,null,null,null,null,null,null,3,"後志農振","後志総合振興局長","shiribeshi.nousonshinkou@pref.hokkaido.lg.jp","0136-23-1891","後志総合振興局産業振興部農村振興課調整係",null,null,null,null,null,null,null,null,null,null,null,null,3,"後志","後志総合振興局産業振興部農村振興課調整係"]
[null,{"$f":"VLOOKUP(AB5,AP2:AQ16,2,FALSE)&\"　様\"","v":{"$error":"#N/A"}},null,null,null,null,null,null,null,null,null,null,null,null,null,null,null,null,null,null,null,null,null,null,null,null,null,null,null,null,null,null,null,null,null,null,null,null,null,null,4,"胆振農振","胆振総合振興局長","iburi.nousonshinkou1@pref.hokkaido.lg.jp","0143-24-9817","胆振総合振興局産業振興部農村振興課調整係",null,null,null,null,null,null,null,null,null,null,null,null,4,"胆振","胆振総合振興局産業振興部農村振興課調整係"]
[null,null,null,null,null,null,null,null,null,null,null,null,null,null,null,null,null,null,null,null,null,null,null,null,null,null,null,null,null,null,null,null,null,null,null,null,null,null,null,null,5,"日高農振","日高振興局長","hidaka.nousonshinkou@pref.hokkaido.lg.jp","0146-22-9353","日高振興局産業振興部農村振興課調整係",null,null,null,null,null,null,null,null,null,null,null,null,5,"日高","日高振興局産業振興部農村振興課調整係"]
[null,null,null,null,null,null,null,"住所",null,null,null,null,null,null,null,null,null,null,null,null,null,null,null,null,null,"次に入力↓",null,null,null,null,null,null,null,null,null,null,null,null,null,null,6,"渡島農振","渡島総合振興局長","oshima.nousonshinkouka@pref.hokkaido.lg.jp","0138-83-7238","渡島総合振興局産業振興部農村振興課調整係",null,null,null,null,null,null,null,null,null,null,null,null,6,"渡島","渡島総合振興局産業振興部農村振興課調整係"]
[null,null,null,null,null,null,null,"商号又は名称",null,null,null,null,null,null,null,null,null,null,null,null,null,null,null,null,null,null,"当初\n契約日",null,null,null,null,null,null,null,null,null,null,null,null,null,7,"檜山農振","檜山振興局長","hiyama.nousonshinkou1@pref.hokkaido.lg.jp","0139-52-6601","檜山振興局産業振興部農村振興課調整係",null,null,null,null,null,null,null,null,null,null,null,null,7,"檜山","檜山振興局産業振興部農村振興課調整係"]
[null,null,null,null,null,null,null,"代表者役職・氏名",null,null,null,null,null,null,null,null,null,null,null,null,null,null,null,null,null,null,null,null,null,null,null,null,null,null,null,null,null,null,null,null,8,"上川調整","上川総合振興局長","kamikawa.chosei1@pref.hokkaido.lg.jp","0166-46-5965","上川総合振興局産業振興部調整課調整係",null,null,null,null,null,null,null,null,null,null,null,null,8,"上川","上川総合振興局産業振興部調整課調整係"]
[null,null,null,null,null,null,null,null,null,null,null,null,null,null,null,null,null,null,null,null,null,null,null,null,null,"最後に入力↓",null,null,null,null,null,null,null,null,null,null,null,null,null,null,9,"留萌農振","留萌振興局長","rumoi.nousonnsinnkou2@pref.hokkaido.lg.jp","0164-42-8495","留萌振興局産業振興部農村振興課調整係",null,null,null,null,null,null,null,null,null,null,null,null,9,"留萌","留萌振興局産業振興部農村振興課調整係"]
[null,{"$f":"AC8","v":"00:00:00"},null,null,null,null,null,{"$f":"\"に契約締結した次の\"&IF(AB2=\"工事\",AF2,AF3)&\"について、\"&\"第\"&AE11&\"回変更契約から\"","v":"に契約締結した次の委託について、第回変更契約から"},null,null,null,null,null,null,null,null,null,null,null,null,null,null,null,null,null,null,"設計変更回数",null,null,null,null,null,null,null,null,null,null,null,null,null,10,"宗谷農振","宗谷総合振興局長","soya.chosei1@pref.hokkaido.lg.jp","0162-33-2535","宗谷総合振興局産業振興部農村振興課調整係",null,null,null,null,null,null,null,null,null,null,null,null,10,"宗谷","宗谷総合振興局産業振興部農村振興課調整係"]
["紙での契約を希望するので、申し出ます。",null,null,null,null,null,null,null,null,null,null,null,null,null,null,null,null,null,null,null,null,null,null,null,null,null,null,null,null,null,null,null,null,null,null,null,null,null,null,null,11,"オホ調整","オホーツク総合振興局長","okhotsk.chosei1@pref.hokkaido.lg.jp","0152-41-0670","オホーツク総合振興局産業振興部調整課調整係",null,null,null,null,null,null,null,null,null,null,null,null,11,"オホーツク","オホーツク総合振興局産業振興部調整課調整係"]
[null,null,null,null,null,null,null,null,null,null,null,null,null,null,null,null,null,null,null,null,null,null,null,null,null,null,"申出書作成日",null,null,null,null,null,null,null,null,null,null,null,null,null,12,"十勝調整","十勝総合振興局長","tokachi.chosei1@pref.hokkaido.lg.jp","0155-27-8619","十勝総合振興局産業振興部調整課調整係",null,null,null,null,null,null,null,null,null,null,null,null,12,"十勝","十勝総合振興局産業振興部調整課調整係"]
["（",{"$f":"IF(AB2=\"工事\",\"工事番号\",\"業務番号\")","v":"業務番号"},null,null,"）","（",null,null,null,"）",null,null,null,null,null,null,null,null,null,null,null,null,null,null,null,null,null,null,null,null,null,null,null,null,null,null,null,null,null,null,13,"釧路農振","釧路総合振興局長","kushiro.tyosei1@pref.hokkaido.lg.jp","0154-43-9231","釧路総合振興局産業振興部農村振興課調整係",null,null,null,null,null,null,null,null,null,null,null,null,13,"釧路","釧路総合振興局産業振興部農村振興課調整係"]
[null,{"$f":"IF(AB2=\"工事\",\"工事名\",\"業務名\")","v":"業務名"},null,null,null,null,null,null,null,null,null,null,null,null,null,null,null,null,null,null,null,null,null,null,null,null,null,null,null,null,null,null,null,null,null,null,null,null,null,null,14,"根室農振","根室振興局長","nemuro.nousonshinkou2@pref.hokkaido.lg.jp","0153-24-5720","根室振興局産業振興部農村振興課調整係",null,null,null,null,null,null,null,null,null,null,null,null,14,"根室","根室振興局産業振興部農村振興課調整係"]
[null,null,null,null,null,null,null,null,null,null,null,null,null,null,null,null,null,null,null,null,null,null,null,null,null,null,null,null,null,null,null,null,null,null,null,null,null,null,null,null,15,"農政部","農政部長","-","-","－"]
["連絡先",null,null,null,null,null,null,null,null,null,null,null,null,null,null,null,null,null,null,null,null,null,null,null,null,null,null,null,null,null,null,null,null,null,null,null,null,null,null,"＜ファイル名用＞"]
[null,null,"担当者",null,null,"（所属）",null,null,null,null,null,null,null,null,null,null,null,null,null,null,null,null,null,null,null,null,"当初契約時と連絡先が違う場合も想定されるので",null,null,null,null,null,null,null,null,null,null,null,null,null,null,"発注機関",{"$f":"AB5","v":0}]
[null,null,null,null,null,"（職・氏名）",null,null,null,null,null,null,null,null,"・",null,null,null,null,null,null,null,null,null,null,null,"お手数ですが、ご入力ください",null,null,null,null,null,null,null,null,null,null,null,null,null,null,"当初契約日",{"$f":"MONTH(AC8)&\"月\"&DAY(AC8)&\"日\"","v":"1月0日"}]
[null,null,null,null,null,"（電話番号）",null,null,null,null,null,null,null,"－",null,null,null,null,"－",null,null,null,null,null,null,null,null,null,null,null,null,null,null,null,null,null,null,null,null,null,null,{"$f":"B14","v":"業務番号"},{"$f":"G14","v":0}]
[null,null,null,null,null,null,null,null,null,null,null,null,null,null,null,null,null,null,null,null,null,null,null,null,null,null,null,null,null,null,null,null,null,null,null,null,null,null,null,null,null,{"$f":"IF(AB2=\"工事\",\"受注者\",\"受託者\")","v":"受託者"},{"$f":"N8","v":0}]
[null,null,null,null,null,null,null,null,null,null,null,null,null,null,null,null,null,null,null,null,null,null,null,null,null,null,null,null,null,null,null,null,null,null,null,null,null,null,null,null,null,"タイトル","変更契約に関する申出書"]
[null,"（留意事項）"]
[null,null,"※",{"$f":"\"この申出書は、\"&IF(AB2=\"工事\",\"工事監督員\",\"業務担当員\")&\"に変更契約に係る設計変更上申日を確認した上で、\"","v":"この申出書は、業務担当員に変更契約に係る設計変更上申日を確認した上で、"}]
[null,null,null,"各発注機関へ直接、提出してください。"]
[]
[null,null,null,"提 出 先",null,null,null,{"$f":"VLOOKUP(AB5,AP2:AT16,5,FALSE)","v":{"$error":"#N/A"}}]
[null,null,null,"電　　話",null,null,null,{"$f":"VLOOKUP(AB5,AP2:AS16,4,FALSE)","v":{"$error":"#N/A"}}]
[null,null,null,"メールアドレス",null,null,null,null,{"$f":"VLOOKUP(AB5,AP2:AR16,3,FALSE)","v":{"$error":"#N/A"}}]
[null,null,null,"※メール送信後は提出先へ連絡してください。"]

{"sheet":"別紙２（単体（代理人（法人））・変更契約）","index":2,"n_rows":33,"n_cols":61,"rows_kept":33,"cut":false,"hidden":false,"merged":[[12,26,13,28],[12,29,13,33],[0,0,0,24],[13,1,13,6],[13,7,13,24],[0,35,0,37],[1,27,2,28],[1,35,1,37],[4,27,5,28],[7,7,7,12],[7,13,7,23],[7,26,8,27],[7,28,8,32],[8,7,8,12],[8,13,8,17],[8,19,8,23],[6,7,6,12],[6,13,6,23],[16,1,16,3],[16,6,16,8],[17,1,17,3],[17,6,17,23],[19,0,23,1],[20,2,22,4],[20,5,20,8],[20,9,20,23],[21,5,21,8],[21,9,21,13],[21,15,21,23],[22,5,22,8],[22,9,22,12],[22,14,22,17],[22,19,22,21],[29,7,29,23],[30,7,30,23],[31,8,31,23],[9,13,9,23],[10,13,10,23],[11,13,11,17],[11,19,11,23],[9,7,9,12],[10,7,10,12]]}
["変更契約に関する申出書",null,null,null,null,null,null,null,null,null,null,null,null,null,null,null,null,null,null,null,null,null,null,null,null,"はじめに選択↓",null,null,null,"契約区分",null,null,null,null,null,"入力箇所",null,null,null,null,null,{"$f":"'別紙２（単体・変更契約）'!AP1","v":"発注機関名"},{"$f":"'別紙２（単体・変更契約）'!AQ1","v":"支出負担行為担当者名"},{"$f":"'別紙２（単体・変更契約）'!AR1","v":"代表アドレス"},{"$f":"'別紙２（単体・変更契約）'!AS1","v":"電話"},{"$f":"'別紙２（単体・変更契約）'!AT1","v":"担当係名"},null,null,null,null,null,null,null,null,null,null,null,null,null,"発注機関名","担当係名"]
[null,null,null,null,null,null,null,null,null,null,null,null,null,null,null,null,null,null,null,null,null,null,null,null,null,null,null,null,null,null,1,"工事",null,null,null,"選択箇所",null,null,null,null,{"$f":"'別紙２（単体・変更契約）'!AO2","v":1},{"$f":"'別紙２（単体・変更契約）'!AP2","v":"空知調整"},{"$f":"'別紙２（単体・変更契約）'!AQ2","v":"空知総合振興局長"},{"$f":"'別紙２（単体・変更契約）'!AR2","v":"sorachi.chosei1@pref.hokkaido.lg.jp"},{"$f":"'別紙２（単体・変更契約）'!AS2","v":"0126-20-0086"},{"$f":"'別紙２（単体・変更契約）'!AT2","v":"空知総合振興局産業振興部調整課調整係"},null,null,null,null,null,null,null,null,null,null,null,null,1,"空知","空知総合振興局産業振興部調整課調整係"]
[null,null,null,null,null,null,null,null,null,null,null,null,null,null,null,null,null,{"$f":"IF($AB$2=\"\",\"\",\"令和\")","v":""},{"$f":"IF($AD$13<>\"\",TEXT($AD$13,\"e\"),\"\")","v":""},"年",{"$f":"IF($AD$13<>\"\",TEXT($AD$13,\"m\"),\"\")","v":""},"月",{"$f":"IF($AD$13<>\"\",TEXT($AD$13,\"d\"),\"\")","v":""},"日",null,null,null,null,null,null,2,"委託",null,null,null,null,null,null,null,null,{"$f":"'別紙２（単体・変更契約）'!AO3","v":2},{"$f":"'別紙２（単体・変更契約）'!AP3","v":"石狩調整"},{"$f":"'別紙２（単体・変更契約）'!AQ3","v":"石狩振興局長"},{"$f":"'別紙２（単体・変更契約）'!AR3","v":"ishikari.chosei1@pref.hokkaido.lg.jp"},{"$f":"'別紙２（単体・変更契約）'!AS3","v":"011-204-5850"},{"$f":"'別紙２（単体・変更契約）'!AT3","v":"石狩振興局産業振興部調整課調整係"},null,null,null,null,null,null,null,null,null,null,null,null,2,"石狩","石狩振興局産業振興部調整課調整係"]
[null,null,null,null,null,null,null,null,null,null,null,null,null,null,null,null,null,null,null,null,null,null,null,null,null,"次に選択↓",null,null,null,"発注機関",null,null,null,null,null,null,null,null,null,null,{"$f":"'別紙２（単体・変更契約）'!AO4","v":3},{"$f":"'別紙２（単体・変更契約）'!AP4","v":"後志農振"},{"$f":"'別紙２（単体・変更契約）'!AQ4","v":"後志総合振興局長"},{"$f":"'別紙２（単体・変更契約）'!AR4","v":"shiribeshi.nousonshinkou@pref.hokkaido.lg.jp"},{"$f":"'別紙２（単体・変更契約）'!AS4","v":"0136-23-1891"},{"$f":"'別紙２（単体・変更契約）'!AT4","v":"後志総合振興局産業振興部農村振興課調整係"},null,null,null,null,null,null,null,null,null,null,null,null,3,"後志","後志総合振興局産業振興部農村振興課調整係"]
[null,{"$f":"VLOOKUP(AB5,AP2:AQ16,2,FALSE)&\"　様\"","v":{"$error":"#N/A"}},null,null,null,null,null,null,null,null,null,null,null,null,null,null,null,null,null,null,null,null,null,null,null,null,null,null,null,null,null,null,null,null,null,null,null,null,null,null,{"$f":"'別紙２（単体・変更契約）'!AO5","v":4},{"$f":"'別紙２（単体・変更契約）'!AP5","v":"胆振農振"},{"$f":"'別紙２（単体・変更契約）'!AQ5","v":"胆振総合振興局長"},{"$f":"'別紙２（単体・変更契約）'!AR5","v":"iburi.nousonshinkou1@pref.hokkaido.lg.jp"},{"$f":"'別紙２（単体・変更契約）'!AS5","v":"0143-24-9817"},{"$f":"'別紙２（単体・変更契約）'!AT5","v":"胆振総合振興局産業振興部農村振興課調整係"},null,null,null,null,null,null,null,null,null,null,null,null,4,"胆振","胆振総合振興局産業振興部農村振興課調整係"]
[null,null,null,null,null,null,null,null,null,null,null,null,null,null,null,null,null,null,null,null,null,null,null,null,null,null,null,null,null,null,null,null,null,null,null,null,null,null,null,null,{"$f":"'別紙２（単体・変更契約）'!AO6","v":5},{"$f":"'別紙２（単体・変更契約）'!AP6","v":"日高農振"},{"$f":"'別紙２（単体・変更契約）'!AQ6","v":"日高振興局長"},{"$f":"'別紙２（単体・変更契約）'!AR6","v":"hidaka.nousonshinkou@pref.hokkaido.lg.jp"},{"$f":"'別紙２（単体・変更契約）'!AS6","v":"0146-22-9353"},{"$f":"'別紙２（単体・変更契約）'!AT6","v":"日高振興局産業振興部農村振興課調整係"},null,null,null,null,null,null,null,null,null,null,null,null,5,"日高","日高振興局産業振興部農村振興課調整係"]
[null,null,null,null,null,null,null,"住所",null,null,null,null,null,null,null,null,null,null,null,null,null,null,null,null,null,"次に入力↓",null,null,null,null,null,null,null,null,null,null,null,null,null,null,{"$f":"'別紙２（単体・変更契約）'!AO7","v":6},{"$f":"'別紙２（単体・変更契約）'!AP7","v":"渡島農振"},{"$f":"'別紙２（単体・変更契約）'!AQ7","v":"渡島総合振興局長"},{"$f":"'別紙２（単体・変更契約）'!AR7","v":"oshima.nousonshinkouka@pref.hokkaido.lg.jp"},{"$f":"'別紙２（単体・変更契約）'!AS7","v":"0138-83-7238"},{"$f":"'別紙２（単体・変更契約）'!AT7","v":"渡島総合振興局産業振興部農村振興課調整係"},null,null,null,null,null,null,null,null,null,null,null,null,6,"渡島","渡島総合振興局産業振興部農村振興課調整係"]
[null,null,null,null,null,null,null,"商号又は名称",null,null,null,null,null,null,null,null,null,null,null,null,null,null,null,null,null,null,"当初\n契約日",null,null,null,null,null,null,null,null,null,null,null,null,null,{"$f":"'別紙２（単体・変更契約）'!AO8","v":7},{"$f":"'別紙２（単体・変更契約）'!AP8","v":"檜山農振"},{"$f":"'別紙２（単体・変更契約）'!AQ8","v":"檜山振興局長"},{"$f":"'別紙２（単体・変更契約）'!AR8","v":"hiyama.nousonshinkou1@pref.hokkaido.lg.jp"},{"$f":"'別紙２（単体・変更契約）'!AS8","v":"0139-52-6601"},{"$f":"'別紙２（単体・変更契約）'!AT8","v":"檜山振興局産業振興部農村振興課調整係"},null,null,null,null,null,null,null,null,null,null,null,null,7,"檜山","檜山振興局産業振興部農村振興課調整係"]
[null,null,null,null,null,null,null,"代表者役職・氏名",null,null,null,null,null,null,null,null,null,null,null,null,null,null,null,null,null,null,null,null,null,null,null,null,null,null,null,null,null,null,null,null,{"$f":"'別紙２（単体・変更契約）'!AO9","v":8},{"$f":"'別紙２（単体・変更契約）'!AP9","v":"上川調整"},{"$f":"'別紙２（単体・変更契約）'!AQ9","v":"上川総合振興局長"},{"$f":"'別紙２（単体・変更契約）'!AR9","v":"kamikawa.chosei1@pref.hokkaido.lg.jp"},{"$f":"'別紙２（単体・変更契約）'!AS9","v":"0166-46-5965"},{"$f":"'別紙２（単体・変更契約）'!AT9","v":"上川総合振興局産業振興部調整課調整係"},null,null,null,null,null,null,null,null,null,null,null,null,8,"上川","上川総合振興局産業振興部調整課調整係"]
[null,null,null,null,null,"代理人",null,"住所",null,null,null,null,null,null,null,null,null,null,null,null,null,null,null,null,null,"最後に入力↓",null,null,null,null,null,null,null,null,null,null,null,null,null,null,{"$f":"'別紙２（単体・変更契約）'!AO10","v":9},{"$f":"'別紙２（単体・変更契約）'!AP10","v":"留萌農振"},{"$f":"'別紙２（単体・変更契約）'!AQ10","v":"留萌振興局長"},{"$f":"'別紙２（単体・変更契約）'!AR10","v":"rumoi.nousonnsinnkou2@pref.hokkaido.lg.jp"},{"$f":"'別紙２（単体・変更契約）'!AS10","v":"0164-42-8495"},{"$f":"'別紙２（単体・変更契約）'!AT10","v":"留萌振興局産業振興部農村振興課調整係"},null,null,null,null,null,null,null,null,null,null,null,null,9,"留萌","留萌振興局産業振興部農村振興課調整係"]
[null,null,null,null,null,null,null,"商号又は名称",null,null,null,null,null,null,null,null,null,null,null,null,null,null,null,null,null,null,"設計変更回数",null,null,null,null,null,null,null,null,null,null,null,null,null,{"$f":"'別紙２（単体・変更契約）'!AO11","v":10},{"$f":"'別紙２（単体・変更契約）'!AP11","v":"宗谷農振"},{"$f":"'別紙２（単体・変更契約）'!AQ11","v":"宗谷総合振興局長"},{"$f":"'別紙２（単体・変更契約）'!AR11","v":"soya.chosei1@pref.hokkaido.lg.jp"},{"$f":"'別紙２（単体・変更契約）'!AS11","v":"0162-33-2535"},{"$f":"'別紙２（単体・変更契約）'!AT11","v":"宗谷総合振興局産業振興部農村振興課調整係"},null,null,null,null,null,null,null,null,null,null,null,null,10,"宗谷","宗谷総合振興局産業振興部農村振興課調整係"]
[null,null,null,null,null,null,null,"代表者役職・氏名",null,null,null,null,null,null,null,null,null,null,null,null,null,null,null,null,null,null,null,null,null,null,null,null,null,null,null,null,null,null,null,null,{"$f":"'別紙２（単体・変更契約）'!AO12","v":11},{"$f":"'別紙２（単体・変更契約）'!AP12","v":"オホ調整"},{"$f":"'別紙２（単体・変更契約）'!AQ12","v":"オホーツク総合振興局長"},{"$f":"'別紙２（単体・変更契約）'!AR12","v":"okhotsk.chosei1@pref.hokkaido.lg.jp"},{"$f":"'別紙２（単体・変更契約）'!AS12","v":"0152-41-0670"},{"$f":"'別紙２（単体・変更契約）'!AT12","v":"オホーツク総合振興局産業振興部調整課調整係"},null,null,null,null,null,null,null,null,null,null,null,null,11,"オホーツク","オホーツク総合振興局産業振興部調整課調整係"]
[null,null,null,null,null,null,null,null,null,null,null,null,null,null,null,null,null,null,null,null,null,null,null,null,null,null,"申出書作成日",null,null,null,null,null,null,null,null,null,null,null,null,null,{"$f":"'別紙２（単体・変更契約）'!AO13","v":12},{"$f":"'別紙２（単体・変更契約）'!AP13","v":"十勝調整"},{"$f":"'別紙２（単体・変更契約）'!AQ13","v":"十勝総合振興局長"},{"$f":"'別紙２（単体・変更契約）'!AR13","v":"tokachi.chosei1@pref.hokkaido.lg.jp"},{"$f":"'別紙２（単体・変更契約）'!AS13","v":"0155-27-8619"},{"$f":"'別紙２（単体・変更契約）'!AT13","v":"十勝総合振興局産業振興部調整課調整係"},null,null,null,null,null,null,null,null,null,null,null,null,12,"十勝","十勝総合振興局産業振興部調整課調整係"]
[null,{"$f":"AC8","v":"00:00:00"},null,null,null,null,null,{"$f":"\"に契約締結した次の\"&IF(AB2=\"工事\",AF2,AF3)&\"について、\"&\"第\"&AE11&\"回変更契約から\"","v":"に契約締結した次の委託について、第回変更契約から"},null,null,null,null,null,null,null,null,null,null,null,null,null,null,null,null,null,null,null,null,null,null,null,null,null,null,null,null,null,null,null,null,{"$f":"'別紙２（単体・変更契約）'!AO14","v":13},{"$f":"'別紙２（単体・変更契約）'!AP14","v":"釧路農振"},{"$f":"'別紙２（単体・変更契約）'!AQ14","v":"釧路総合振興局長"},{"$f":"'別紙２（単体・変更契約）'!AR14","v":"kushiro.tyosei1@pref.hokkaido.lg.jp"},{"$f":"'別紙２（単体・変更契約）'!AS14","v":"0154-43-9231"},{"$f":"'別紙２（単体・変更契約）'!AT14","v":"釧路総合振興局産業振興部農村振興課調整係"},null,null,null,null,null,null,null,null,null,null,null,null,13,"釧路","釧路総合振興局産業振興部農村振興課調整係"]
["紙での契約を希望するので、申し出ます。",null,null,null,null,null,null,null,null,null,null,null,null,null,null,null,null,null,null,null,null,null,null,null,null,null,null,null,null,null,null,null,null,null,null,null,null,null,null,null,{"$f":"'別紙２（単体・変更契約）'!AO15","v":14},{"$f":"'別紙２（単体・変更契約）'!AP15","v":"根室農振"},{"$f":"'別紙２（単体・変更契約）'!AQ15","v":"根室振興局長"},{"$f":"'別紙２（単体・変更契約）'!AR15","v":"nemuro.nousonshinkou2@pref.hokkaido.lg.jp"},{"$f":"'別紙２（単体・変更契約）'!AS15","v":"0153-24-5720"},{"$f":"'別紙２（単体・変更契約）'!AT15","v":"根室振興局産業振興部農村振興課調整係"},null,null,null,null,null,null,null,null,null,null,null,null,14,"根室","根室振興局産業振興部農村振興課調整係"]
[null,null,null,null,null,null,null,null,null,null,null,null,null,null,null,null,null,null,null,null,null,null,null,null,null,null,null,null,null,null,null,null,null,null,null,null,null,null,null,null,{"$f":"'別紙２（単体・変更契約）'!AO16","v":15},{"$f":"'別紙２（単体・変更契約）'!AP16","v":"農政部"},{"$f":"'別紙２（単体・変更契約）'!AQ16","v":"農政部長"},{"$f":"'別紙２（単体・変更契約）'!AR16","v":"-"},{"$f":"'別紙２（単体・変更契約）'!AS16","v":"-"},{"$f":"'別紙２（単体・変更契約）'!AT16","v":"－"}]
["（",{"$f":"IF(AB2=\"工事\",\"工事番号\",\"業務番号\")","v":"業務番号"},null,null,"）","（",null,null,null,"）",null,null,null,null,null,null,null,null,null,null,null,null,null,null,null,null,null,null,null,null,null,null,null,null,null,null,null,null,null,"＜ファイル名用＞"]
[null,{"$f":"IF(AB2=\"工事\",\"工事名\",\"業務名\")","v":"業務名"},null,null,null,null,null,null,null,null,null,null,null,null,null,null,null,null,null,null,null,null,null,null,null,null,null,null,null,null,null,null,null,null,null,null,null,null,null,null,null,"発注機関",{"$f":"AB5","v":0}]
[null,null,null,null,null,null,null,null,null,null,null,null,null,null,null,null,null,null,null,null,null,null,null,null,null,null,null,null,null,null,null,null,null,null,null,null,null,null,null,null,null,"当初契約日",{"$f":"MONTH(AC8)&\"月\"&DAY(AC8)&\"日\"","v":"1月0日"}]
["連絡先",null,null,null,null,null,null,null,null,null,null,null,null,null,null,null,null,null,null,null,null,null,null,null,null,null,null,null,null,null,null,null,null,null,null,null,null,null,null,null,null,{"$f":"B17","v":"業務番号"},{"$f":"G17","v":0}]
[null,null,"担当者",null,null,"（所属）",null,null,null,null,null,null,null,null,null,null,null,null,null,null,null,null,null,null,null,null,"当初契約時と連絡先が違う場合も想定されるので",null,null,null,null,null,null,null,null,null,null,null,null,null,null,{"$f":"IF(AB2=\"工事\",\"受注者\",\"受託者\")","v":"受託者"},{"$f":"N8","v":0}]
[null,null,null,null,null,"（職・氏名）",null,null,null,null,null,null,null,null,"・",null,null,null,null,null,null,null,null,null,null,null,"お手数ですが、ご入力ください",null,null,null,null,null,null,null,null,null,null,null,null,null,null,"タイトル","変更契約に関する申出書"]
[null,null,null,null,null,"（電話番号）",null,null,null,null,null,null,null,"－",null,null,null,null,"－"]
[]
[]
[null,"（留意事項）"]
[null,null,"※",{"$f":"\"この申出書は、\"&IF(AB2=\"工事\",\"工事監督員\",\"業務担当員\")&\"に変更契約に係る設計変更上申日を確認した上で、\"","v":"この申出書は、業務担当員に変更契約に係る設計変更上申日を確認した上で、"}]
[null,null,null,"各発注機関へ直接、提出してください。"]
[]
[null,null,null,"提 出 先",null,null,null,{"$f":"VLOOKUP(AB5,AP2:AT16,5,FALSE)","v":{"$error":"#N/A"}}]
[null,null,null,"電　　話",null,null,null,{"$f":"VLOOKUP(AB5,AP2:AS16,4,FALSE)","v":{"$error":"#N/A"}}]
[null,null,null,"メールアドレス",null,null,null,null,{"$f":"VLOOKUP(AB5,AP2:AR16,3,FALSE)","v":{"$error":"#N/A"}}]
[null,null,null,"※メール送信後は提出先へ連絡してください。"]

{"sheet":"別紙２（単体（代理人（個人））・変更契約）","index":3,"n_rows":33,"n_cols":61,"rows_kept":33,"cut":false,"hidden":false,"merged":[[6,7,6,12],[6,13,6,23],[0,0,0,24],[0,35,0,37],[1,27,2,28],[1,35,1,37],[4,27,5,28],[7,7,7,12],[7,13,7,23],[7,26,8,27],[7,28,8,32],[8,7,8,12],[8,13,8,17],[8,19,8,23],[9,7,9,12],[9,13,9,23],[10,7,10,12],[10,13,10,23],[11,13,11,17],[11,19,11,23],[13,1,13,6],[13,7,13,24],[16,1,16,3],[16,6,16,8],[17,1,17,3],[17,6,17,23],[19,0,23,1],[20,2,22,4],[20,5,20,8],[20,9,20,23],[21,5,21,8],[21,9,21,13],[21,15,21,23],[22,5,22,8],[22,9,22,12],[22,14,22,17],[22,19,22,21],[12,26,13,28],[12,29,13,33],[29,7,29,23],[30,7,30,23],[31,8,31,23]]}
["変更契約に関する申出書",null,null,null,null,null,null,null,null,null,null,null,null,null,null,null,null,null,null,null,null,null,null,null,null,"はじめに選択↓",null,null,null,"契約区分",null,null,null,null,null,"入力箇所",null,null,null,null,null,{"$f":"'別紙２（単体・変更契約）'!AP1","v":"発注機関名"},{"$f":"'別紙２（単体・変更契約）'!AQ1","v":"支出負担行為担当者名"},{"$f":"'別紙２（単体・変更契約）'!AR1","v":"代表アドレス"},{"$f":"'別紙２（単体・変更契約）'!AS1","v":"電話"},{"$f":"'別紙２（単体・変更契約）'!AT1","v":"担当係名"},null,null,null,null,null,null,null,null,null,null,null,null,null,"発注機関名","担当係名"]
[null,null,null,null,null,null,null,null,null,null,null,null,null,null,null,null,null,null,null,null,null,null,null,null,null,null,null,null,null,null,1,"工事",null,null,null,"選択箇所",null,null,null,null,{"$f":"'別紙２（単体・変更契約）'!AO2","v":1},{"$f":"'別紙２（単体・変更契約）'!AP2","v":"空知調整"},{"$f":"'別紙２（単体・変更契約）'!AQ2","v":"空知総合振興局長"},{"$f":"'別紙２（単体・変更契約）'!AR2","v":"sorachi.chosei1@pref.hokkaido.lg.jp"},{"$f":"'別紙２（単体・変更契約）'!AS2","v":"0126-20-0086"},{"$f":"'別紙２（単体・変更契約）'!AT2","v":"空知総合振興局産業振興部調整課調整係"},null,null,null,null,null,null,null,null,null,null,null,null,1,"空知","空知総合振興局産業振興部調整課調整係"]
[null,null,null,null,null,null,null,null,null,null,null,null,null,null,null,null,null,{"$f":"IF($AB$2=\"\",\"\",\"令和\")","v":""},{"$f":"IF($AD$13<>\"\",TEXT($AD$13,\"e\"),\"\")","v":""},"年",{"$f":"IF($AD$13<>\"\",TEXT($AD$13,\"m\"),\"\")","v":""},"月",{"$f":"IF($AD$13<>\"\",TEXT($AD$13,\"d\"),\"\")","v":""},"日",null,null,null,null,null,null,2,"委託",null,null,null,null,null,null,null,null,{"$f":"'別紙２（単体・変更契約）'!AO3","v":2},{"$f":"'別紙２（単体・変更契約）'!AP3","v":"石狩調整"},{"$f":"'別紙２（単体・変更契約）'!AQ3","v":"石狩振興局長"},{"$f":"'別紙２（単体・変更契約）'!AR3","v":"ishikari.chosei1@pref.hokkaido.lg.jp"},{"$f":"'別紙２（単体・変更契約）'!AS3","v":"011-204-5850"},{"$f":"'別紙２（単体・変更契約）'!AT3","v":"石狩振興局産業振興部調整課調整係"},null,null,null,null,null,null,null,null,null,null,null,null,2,"石狩","石狩振興局産業振興部調整課調整係"]
[null,null,null,null,null,null,null,null,null,null,null,null,null,null,null,null,null,null,null,null,null,null,null,null,null,"次に選択↓",null,null,null,"発注機関",null,null,null,null,null,null,null,null,null,null,{"$f":"'別紙２（単体・変更契約）'!AO4","v":3},{"$f":"'別紙２（単体・変更契約）'!AP4","v":"後志農振"},{"$f":"'別紙２（単体・変更契約）'!AQ4","v":"後志総合振興局長"},{"$f":"'別紙２（単体・変更契約）'!AR4","v":"shiribeshi.nousonshinkou@pref.hokkaido.lg.jp"},{"$f":"'別紙２（単体・変更契約）'!AS4","v":"0136-23-1891"},{"$f":"'別紙２（単体・変更契約）'!AT4","v":"後志総合振興局産業振興部農村振興課調整係"},null,null,null,null,null,null,null,null,null,null,null,null,3,"後志","後志総合振興局産業振興部農村振興課調整係"]
[null,{"$f":"VLOOKUP(AB5,AP2:AQ16,2,FALSE)&\"　様\"","v":{"$error":"#N/A"}},null,null,null,null,null,null,null,null,null,null,null,null,null,null,null,null,null,null,null,null,null,null,null,null,null,null,null,null,null,null,null,null,null,null,null,null,null,null,{"$f":"'別紙２（単体・変更契約）'!AO5","v":4},{"$f":"'別紙２（単体・変更契約）'!AP5","v":"胆振農振"},{"$f":"'別紙２（単体・変更契約）'!AQ5","v":"胆振総合振興局長"},{"$f":"'別紙２（単体・変更契約）'!AR5","v":"iburi.nousonshinkou1@pref.hokkaido.lg.jp"},{"$f":"'別紙２（単体・変更契約）'!AS5","v":"0143-24-9817"},{"$f":"'別紙２（単体・変更契約）'!AT5","v":"胆振総合振興局産業振興部農村振興課調整係"},null,null,null,null,null,null,null,null,null,null,null,null,4,"胆振","胆振総合振興局産業振興部農村振興課調整係"]
[null,null,null,null,null,null,null,null,null,null,null,null,null,null,null,null,null,null,null,null,null,null,null,null,null,null,null,null,null,null,null,null,null,null,null,null,null,null,null,null,{"$f":"'別紙２（単体・変更契約）'!AO6","v":5},{"$f":"'別紙２（単体・変更契約）'!AP6","v":"日高農振"},{"$f":"'別紙２（単体・変更契約）'!AQ6","v":"日高振興局長"},{"$f":"'別紙２（単体・変更契約）'!AR6","v":"hidaka.nousonshinkou@pref.hokkaido.lg.jp"},{"$f":"'別紙２（単体・変更契約）'!AS6","v":"0146-22-9353"},{"$f":"'別紙２（単体・変更契約）'!AT6","v":"日高振興局産業振興部農村振興課調整係"},null,null,null,null,null,null,null,null,null,null,null,null,5,"日高","日高振興局産業振興部農村振興課調整係"]
[null,null,null,null,null,null,null,"住所",null,null,null,null,null,null,null,null,null,null,null,null,null,null,null,null,null,"次に入力↓",null,null,null,null,null,null,null,null,null,null,null,null,null,null,{"$f":"'別紙２（単体・変更契約）'!AO7","v":6},{"$f":"'別紙２（単体・変更契約）'!AP7","v":"渡島農振"},{"$f":"'別紙２（単体・変更契約）'!AQ7","v":"渡島総合振興局長"},{"$f":"'別紙２（単体・変更契約）'!AR7","v":"oshima.nousonshinkouka@pref.hokkaido.lg.jp"},{"$f":"'別紙２（単体・変更契約）'!AS7","v":"0138-83-7238"},{"$f":"'別紙２（単体・変更契約）'!AT7","v":"渡島総合振興局産業振興部農村振興課調整係"},null,null,null,null,null,null,null,null,null,null,null,null,6,"渡島","渡島総合振興局産業振興部農村振興課調整係"]
[null,null,null,null,null,null,null,"商号又は名称",null,null,null,null,null,null,null,null,null,null,null,null,null,null,null,null,null,null,"当初\n契約日",null,null,null,null,null,null,null,null,null,null,null,null,null,{"$f":"'別紙２（単体・変更契約）'!AO8","v":7},{"$f":"'別紙２（単体・変更契約）'!AP8","v":"檜山農振"},{"$f":"'別紙２（単体・変更契約）'!AQ8","v":"檜山振興局長"},{"$f":"'別紙２（単体・変更契約）'!AR8","v":"hiyama.nousonshinkou1@pref.hokkaido.lg.jp"},{"$f":"'別紙２（単体・変更契約）'!AS8","v":"0139-52-6601"},{"$f":"'別紙２（単体・変更契約）'!AT8","v":"檜山振興局産業振興部農村振興課調整係"},null,null,null,null,null,null,null,null,null,null,null,null,7,"檜山","檜山振興局産業振興部農村振興課調整係"]
[null,null,null,null,null,null,null,"代表者役職・氏名",null,null,null,null,null,null,null,null,null,null,null,null,null,null,null,null,null,null,null,null,null,null,null,null,null,null,null,null,null,null,null,null,{"$f":"'別紙２（単体・変更契約）'!AO9","v":8},{"$f":"'別紙２（単体・変更契約）'!AP9","v":"上川調整"},{"$f":"'別紙２（単体・変更契約）'!AQ9","v":"上川総合振興局長"},{"$f":"'別紙２（単体・変更契約）'!AR9","v":"kamikawa.chosei1@pref.hokkaido.lg.jp"},{"$f":"'別紙２（単体・変更契約）'!AS9","v":"0166-46-5965"},{"$f":"'別紙２（単体・変更契約）'!AT9","v":"上川総合振興局産業振興部調整課調整係"},null,null,null,null,null,null,null,null,null,null,null,null,8,"上川","上川総合振興局産業振興部調整課調整係"]
[null,null,null,null,null,"代理人",null,"住所",null,null,null,null,null,null,null,null,null,null,null,null,null,null,null,null,null,"最後に入力↓",null,null,null,null,null,null,null,null,null,null,null,null,null,null,{"$f":"'別紙２（単体・変更契約）'!AO10","v":9},{"$f":"'別紙２（単体・変更契約）'!AP10","v":"留萌農振"},{"$f":"'別紙２（単体・変更契約）'!AQ10","v":"留萌振興局長"},{"$f":"'別紙２（単体・変更契約）'!AR10","v":"rumoi.nousonnsinnkou2@pref.hokkaido.lg.jp"},{"$f":"'別紙２（単体・変更契約）'!AS10","v":"0164-42-8495"},{"$f":"'別紙２（単体・変更契約）'!AT10","v":"留萌振興局産業振興部農村振興課調整係"},null,null,null,null,null,null,null,null,null,null,null,null,9,"留萌","留萌振興局産業振興部農村振興課調整係"]
[null,null,null,null,null,null,null,"商号又は名称",null,null,null,null,null,null,null,null,null,null,null,null,null,null,null,null,null,null,"設計変更回数",null,null,null,null,null,null,null,null,null,null,null,null,null,{"$f":"'別紙２（単体・変更契約）'!AO11","v":10},{"$f":"'別紙２（単体・変更契約）'!AP11","v":"宗谷農振"},{"$f":"'別紙２（単体・変更契約）'!AQ11","v":"宗谷総合振興局長"},{"$f":"'別紙２（単体・変更契約）'!AR11","v":"soya.chosei1@pref.hokkaido.lg.jp"},{"$f":"'別紙２（単体・変更契約）'!AS11","v":"0162-33-2535"},{"$f":"'別紙２（単体・変更契約）'!AT11","v":"宗谷総合振興局産業振興部農村振興課調整係"},null,null,null,null,null,null,null,null,null,null,null,null,10,"宗谷","宗谷総合振興局産業振興部農村振興課調整係"]
[null,null,null,null,null,null,null,"役職・氏名",null,null,null,null,null,null,null,null,null,null,null,null,null,null,null,null,null,null,null,null,null,null,null,null,null,null,null,null,null,null,null,null,{"$f":"'別紙２（単体・変更契約）'!AO12","v":11},{"$f":"'別紙２（単体・変更契約）'!AP12","v":"オホ調整"},{"$f":"'別紙２（単体・変更契約）'!AQ12","v":"オホーツク総合振興局長"},{"$f":"'別紙２（単体・変更契約）'!AR12","v":"okhotsk.chosei1@pref.hokkaido.lg.jp"},{"$f":"'別紙２（単体・変更契約）'!AS12","v":"0152-41-0670"},{"$f":"'別紙２（単体・変更契約）'!AT12","v":"オホーツク総合振興局産業振興部調整課調整係"},null,null,null,null,null,null,null,null,null,null,null,null,11,"オホーツク","オホーツク総合振興局産業振興部調整課調整係"]
[null,null,null,null,null,null,null,null,null,null,null,null,null,null,null,null,null,null,null,null,null,null,null,null,null,null,"申出書作成日",null,null,null,null,null,null,null,null,null,null,null,null,null,{"$f":"'別紙２（単体・変更契約）'!AO13","v":12},{"$f":"'別紙２（単体・変更契約）'!AP13","v":"十勝調整"},{"$f":"'別紙２（単体・変更契約）'!AQ13","v":"十勝総合振興局長"},{"$f":"'別紙２（単体・変更契約）'!AR13","v":"tokachi.chosei1@pref.hokkaido.lg.jp"},{"$f":"'別紙２（単体・変更契約）'!AS13","v":"0155-27-8619"},{"$f":"'別紙２（単体・変更契約）'!AT13","v":"十勝総合振興局産業振興部調整課調整係"},null,null,null,null,null,null,null,null,null,null,null,null,12,"十勝","十勝総合振興局産業振興部調整課調整係"]
[null,{"$f":"AC8","v":"00:00:00"},null,null,null,null,null,{"$f":"\"に契約締結した次の\"&IF(AB2=\"工事\",AF2,AF3)&\"について、\"&\"第\"&AE11&\"回変更契約から\"","v":"に契約締結した次の委託について、第回変更契約から"},null,null,null,null,null,null,null,null,null,null,null,null,null,null,null,null,null,null,null,null,null,null,null,null,null,null,null,null,null,null,null,null,{"$f":"'別紙２（単体・変更契約）'!AO14","v":13},{"$f":"'別紙２（単体・変更契約）'!AP14","v":"釧路農振"},{"$f":"'別紙２（単体・変更契約）'!AQ14","v":"釧路総合振興局長"},{"$f":"'別紙２（単体・変更契約）'!AR14","v":"kushiro.tyosei1@pref.hokkaido.lg.jp"},{"$f":"'別紙２（単体・変更契約）'!AS14","v":"0154-43-9231"},{"$f":"'別紙２（単体・変更契約）'!AT14","v":"釧路総合振興局産業振興部農村振興課調整係"},null,null,null,null,null,null,null,null,null,null,null,null,13,"釧路","釧路総合振興局産業振興部農村振興課調整係"]
["紙での契約を希望するので、申し出ます。",null,null,null,null,null,null,null,null,null,null,null,null,null,null,null,null,null,null,null,null,null,null,null,null,null,null,null,null,null,null,null,null,null,null,null,null,null,null,null,{"$f":"'別紙２（単体・変更契約）'!AO15","v":14},{"$f":"'別紙２（単体・変更契約）'!AP15","v":"根室農振"},{"$f":"'別紙２（単体・変更契約）'!AQ15","v":"根室振興局長"},{"$f":"'別紙２（単体・変更契約）'!AR15","v":"nemuro.nousonshinkou2@pref.hokkaido.lg.jp"},{"$f":"'別紙２（単体・変更契約）'!AS15","v":"0153-24-5720"},{"$f":"'別紙２（単体・変更契約）'!AT15","v":"根室振興局産業振興部農村振興課調整係"},null,null,null,null,null,null,null,null,null,null,null,null,14,"根室","根室振興局産業振興部農村振興課調整係"]
[null,null,null,null,null,null,null,null,null,null,null,null,null,null,null,null,null,null,null,null,null,null,null,null,null,null,null,null,null,null,null,null,null,null,null,null,null,null,null,null,{"$f":"'別紙２（単体・変更契約）'!AO16","v":15},{"$f":"'別紙２（単体・変更契約）'!AP16","v":"農政部"},{"$f":"'別紙２（単体・変更契約）'!AQ16","v":"農政部長"},{"$f":"'別紙２（単体・変更契約）'!AR16","v":"-"},{"$f":"'別紙２（単体・変更契約）'!AS16","v":"-"},{"$f":"'別紙２（単体・変更契約）'!AT16","v":"－"}]
["（",{"$f":"IF(AB2=\"工事\",\"工事番号\",\"業務番号\")","v":"業務番号"},null,null,"）","（",null,null,null,"）",null,null,null,null,null,null,null,null,null,null,null,null,null,null,null,null,null,null,null,null,null,null,null,null,null,null,null,null,null,"＜ファイル名用＞"]
[null,{"$f":"IF(AB2=\"工事\",\"工事名\",\"業務名\")","v":"業務名"},null,null,null,null,null,null,null,null,null,null,null,null,null,null,null,null,null,null,null,null,null,null,null,null,null,null,null,null,null,null,null,null,null,null,null,null,null,null,null,"発注機関",{"$f":"AB5","v":0}]
[null,null,null,null,null,null,null,null,null,null,null,null,null,null,null,null,null,null,null,null,null,null,null,null,null,null,null,null,null,null,null,null,null,null,null,null,null,null,null,null,null,"当初契約日",{"$f":"MONTH(AC8)&\"月\"&DAY(AC8)&\"日\"","v":"1月0日"}]
["連絡先",null,null,null,null,null,null,null,null,null,null,null,null,null,null,null,null,null,null,null,null,null,null,null,null,null,null,null,null,null,null,null,null,null,null,null,null,null,null,null,null,{"$f":"B17","v":"業務番号"},{"$f":"G17","v":0}]
[null,null,"担当者",null,null,"（所属）",null,null,null,null,null,null,null,null,null,null,null,null,null,null,null,null,null,null,null,null,"当初契約時と連絡先が違う場合も想定されるので",null,null,null,null,null,null,null,null,null,null,null,null,null,null,{"$f":"IF(AB2=\"工事\",\"受注者\",\"受託者\")","v":"受託者"},{"$f":"N8","v":0}]
[null,null,null,null,null,"（職・氏名）",null,null,null,null,null,null,null,null,"・",null,null,null,null,null,null,null,null,null,null,null,"お手数ですが、ご入力ください",null,null,null,null,null,null,null,null,null,null,null,null,null,null,"タイトル","変更契約に関する申出書"]
[null,null,null,null,null,"（電話番号）",null,null,null,null,null,null,null,"－",null,null,null,null,"－"]
[]
[]
[null,"（留意事項）"]
[null,null,"※",{"$f":"\"この申出書は、\"&IF(AB2=\"工事\",\"工事監督員\",\"業務担当員\")&\"に変更契約に係る設計変更上申日を確認した上で、\"","v":"この申出書は、業務担当員に変更契約に係る設計変更上申日を確認した上で、"}]
[null,null,null,"各発注機関へ直接、提出してください。"]
[]
[null,null,null,"提 出 先",null,null,null,{"$f":"VLOOKUP(AB5,AP2:AT16,5,FALSE)","v":{"$error":"#N/A"}}]
[null,null,null,"電　　話",null,null,null,{"$f":"VLOOKUP(AB5,AP2:AS16,4,FALSE)","v":{"$error":"#N/A"}}]
[null,null,null,"メールアドレス",null,null,null,null,{"$f":"VLOOKUP(AB5,AP2:AR16,3,FALSE)","v":{"$error":"#N/A"}}]
[null,null,null,"※メール送信後は提出先へ連絡してください。"]